lending/lending_fUSD_20260222
["ID","MTS","AMOUNT","RATE_DAILY","PERIOD"]
[406324082,1771740632684,-10175.39047505,0.0004085,2]
[406324083,1771740632698,-253.91423836,0.0004085,2]
[406324084,1771740632709,-760.5764361,0.0004085,2]
[406324085,1771740632720,-644.71052742,0.0004085,2]
[406324086,1771740632730,-710.05,0.0004085,2]
[406324089,1771740637666,-300.0,0.00040599,2]
[406324090,1771740637678,-200.0,0.00040599,2]
[406324091,1771740637689,-318.57454504,0.00040599,2]
[406324092,1771740637698,-306.23261478,0.00040599,2]
[406324093,1771740637709,-300.0,0.00040599,2]
[406324094,1771740637719,-125.19284018,0.0004085,2]
[406324095,1771740637731,-1000.0,0.0004085,2]
[406324096,1771740637786,-487.76135159,0.0004085,2]
[406324105,1771740640222,-300.0,0.00040599,2]
[406324106,1771740640232,-297.032921,0.00040599,2]
[406324166,1771740643032,-2.967079,0.00040599,2]
[406324167,1771740643042,-300.0,0.00040599,2]
[406324168,1771740643051,-0.56599105,0.00040599,2]
[406324169,1771740643062,-299.43400895,0.00040599,2]
[406324170,1771740643070,-335.00467043,0.0004085,2]
[406324175,1771740645552,-300.0,0.00040599,2]
[406324176,1771740645562,-300.0,0.00040599,2]
[406324177,1771740645571,-5410.09163407,0.0004085,2]
[406324178,1771740645583,-533.1900028,0.0004085,2]
[406324179,1771740645594,-392.59630478,0.0004085,2]
[406324180,1771740645656,-1403.50532682,0.0004085,2]
[406324181,1771740645715,-530.914998,0.0004085,2]
[406324182,1771740645774,-1980.96955014,0.0004085,2]
[406324183,1771740645833,-1183.72033041,0.0004085,2]
[406324201,1771740667938,3749.65321666,7.945e-05,2]
[406324202,1771740667966,328.38958692,7.945e-05,2]
[406324203,1771740667986,26.29701405,7.945e-05,2]
[406324204,1771740668007,5000.0,7.945e-05,2]
[406324205,1771740668031,5000.0,7.945e-05,2]
[406324206,1771740668051,5000.0,7.945e-05,2]
[406324207,1771740668071,5000.0,7.945e-05,2]
[406324208,1771740668092,390.32514437,7.945e-05,2]
[406324209,1771740748706,500.0,0.00013101,2]
[406324210,1771740749149,500.0,0.00013101,2]
[406324211,1771740749620,500.0,0.00013101,2]
[406324212,1771740750105,500.0,0.00013101,2]
[406324213,1771740750703,500.0,0.000108,2]
[406324214,1771740751194,500.0,0.000108,2]
[406324215,1771740751694,655.244832,0.000108,2]
[406324216,1771740752026,500.0,0.00013101,2]
[406324217,1771740752262,454.43002363,0.00013101,2]
[406324218,1771740752283,49.40431771,0.00013101,2]
[406324219,1771740752511,500.0,0.00013101,2]
[406324220,1771740752988,502.76700379,0.000108,2]
[406324221,1771740754248,500.0,0.00013101,2]
[406324222,1771740754741,500.0,0.00013101,2]
[406324223,1771740755279,500.0,0.00013101,2]
[406324224,1771740755713,500.0,0.00013101,2]
[406324225,1771740756194,500.0,0.00013101,2]
[406324226,1771740756707,500.0,0.000108,2]
[406324227,1771740757180,500.0,0.000108,2]
[406324228,1771740757683,447.8286785,0.000108,2]
[406324229,1771740757704,52.1713215,0.000108,2]
[406324230,1771740758152,500.0,0.000108,2]
[406324231,1771740758663,507.70307174,0.000108,2]
[406324252,1771741831573,-509.0,0.00015101,2]
[406324253,1771741831582,-694.77881932,0.00015289,2]
[406324254,1771741831592,-5000.0,0.000162,5]
[406324256,1771741831601,-1239.55763877,0.00016744,2]
[406324258,1771741831610,-739.3821472,0.00016998,2]
[406324262,1771741831639,-460.6178528,0.00016998,2]
[406324264,1771741831648,-550.0,0.00016998,2]
[406324265,1771741831657,-500.0,0.00016999,2]
[406324266,1771741831666,-500.0,0.00016999,2]
[406324267,1771741831676,-500.0,0.00016999,2]
[406324268,1771741831685,-500.0,0.00016999,2]
[406324269,1771741831694,-500.0,0.00016999,2]
[406324270,1771741831704,-500.0,0.00016999,2]
[406324271,1771741831713,-186.89442935,0.00016999,2]
[406324272,1771741831722,-500.0,0.00016999,2]
[406324273,1771741831732,-500.0,0.00016999,2]
[406324274,1771741831741,-500.0,0.00016999,2]
[406324275,1771741831754,-139669.6403885,0.00017,2]
[406324276,1771741831764,-253.732321,0.00017099,7]
[406324277,1771741831773,-524.29833169,0.000179,2]
[406324278,1771741831783,-198.6991867,0.000179,2]
[406324279,1771741831794,-247.39837343,0.000179,2]
[406324280,1771741831805,-286.35772276,0.000179,2]
[406324281,1771741831815,-412.97560818,0.000179,2]
[406324282,1771741831824,-3664.0,0.00017973,2]
[406324284,1771741831834,-3626.51,0.0001799,2]
[406324285,1771741831845,-3626.51,0.0001799,2]
[406324286,1771741831855,-3626.51,0.0001799,2]
[406324287,1771741831865,-3626.51,0.0001799,2]
[406324288,1771741831875,-3626.51,0.0001799,2]
[406324289,1771741831886,-500.0,0.00017999,2]
[406324291,1771741831895,-500.0,0.00017999,2]
[406324293,1771741831904,-500.0,0.00017999,2]
[406324295,1771741831914,-500.0,0.00017999,2]
[406324297,1771741831924,-500.0,0.00017999,2]
[406324299,1771741831933,-500.0,0.00017999,2]
[406324301,1771741831947,-500.0,0.00017999,2]
[406324303,1771741831957,-500.0,0.00017999,2]
[406324304,1771741831966,-500.0,0.00017999,2]
[406324305,1771741831976,-500.0,0.00017999,2]
[406324306,1771741831987,-500.0,0.00017999,2]
[406324307,1771741831996,-500.0,0.00017999,2]
[406324308,1771741832006,-420.38589,0.00017999,2]
[406324309,1771741832017,-500.0,0.00017999,2]
[406324310,1771741832026,-1332519.04932813,0.00018,2]
[406324311,1771741832035,-690.77492016,0.00018,2]
[406324312,1771741832044,-846117.6226003,0.00018,2]
[406324313,1771741832053,-11677.34784152,0.000181,2]
[406324314,1771741832066,-185.0,0.00018103,2]
[406324315,1771741832075,-1317.38318427,0.000182,2]
[406324316,1771741832084,-1680.0,0.00018658,2]
[406324317,1771741832093,-1343.32503281,0.00019655,5]
[406324318,1771741832102,-166.66,0.00019679,2]
[406324319,1771741832111,-250.0,0.00019954,2]
[406324320,1771741832120,-500.0,0.00020278,2]
[406324321,1771741832129,-166.66,0.00020328,2]
[406324322,1771741832138,-11677.34784146,0.00020362,2]
[406324323,1771741832147,-1631.0,0.0002048,2]
[406324324,1771741832156,-5108.05375525,0.00020506,2]
[406324325,1771741832165,-500.0,0.00020552,2]
[406324326,1771741832174,-500.0,0.00020826,2]
[406324327,1771741832184,-524.29833161,0.00020916,2]
[406324328,1771741832193,-166.66,0.00020978,2]
[406324329,1771741832202,-500.0,0.000211,2]
[406324330,1771741832211,-1447.09242697,0.0002111,7]
[406324331,1771741832220,-515.85,0.0002111,2]
[406324332,1771741832229,-299.99,0.0002111,7]
[406324333,1771741832238,-4999.99,0.0002111,2]
[406324334,1771741832247,-150.99,0.0002111,2]
[406324335,1771741832259,-9999.99,0.0002111,2]
[406324336,1771741832269,-9999.99,0.0002111,2]
[406324337,1771741832279,-9999.99,0.0002111,2]
[406324338,1771741832288,-764.0,0.0002111,2]
[406324339,1771741832299,-499.99,0.0002111,2]
[406324340,1771741832308,-383.0,0.00021133,2]
[406324341,1771741832317,-472.0,0.00021175,2]
[406324342,1771741832326,-419.0,0.00021218,2]
[406324343,1771741832336,-500.0,0.00021374,2]
[406324344,1771741832345,-157.0,0.000214,2]
[406324345,1771741832354,-166.66,0.00021627,2]
[406324346,1771741832363,-500.0,0.00021648,2]
[406324347,1771741832372,-690.77492016,0.00021863,2]
[406324348,1771741832381,-500.0,0.00021922,2]
[406324349,1771741832390,-500.0,0.00022196,2]
[406324350,1771741832399,-166.66,0.00022277,2]
[406324351,1771741832411,-500.0,0.0002247,2]
[406324352,1771741832419,-287.65,0.000225,7]
[406324353,1771741832428,-1550.85982112,0.00022565,9]
[406324354,1771741832438,-11677.34784146,0.00022625,2]
[406324355,1771741832447,-500.0,0.00022744,2]
[406324356,1771741832459,-166.66,0.00022926,2]
[406324357,1771741832468,-500.0,0.00023018,2]
[406324358,1771741832478,-173.78509278,0.00023049,2]
[406324359,1771741832487,-160.0,0.00023061,2]
[406324360,1771741832496,-151.0,0.00023134,2]
[406324361,1771741832505,-151.0,0.00023134,2]
[406324362,1771741832514,-151.0,0.00023134,2]
[406324363,1771741832524,-151.0,0.00023134,2]
[406324364,1771741832533,-9999.99,0.00023134,2]
[406324365,1771741832543,-150.99,0.00023134,2]
[406324366,1771741832552,-179545.65,0.00023134,2]
[406324367,1771741832561,-2107.04,0.00023134,2]
[406324368,1771741832570,-14649.59,0.00023134,2]
[406324369,1771741832580,-62267.42,0.00023164,2]
[406324370,1771741832589,-10023.02,0.000232,2]
[406324371,1771741832599,-309.88642084,0.00023832,2]
[406324372,1771741832608,-524.29833161,0.00023932,2]
[406324373,1771741832617,-1654.62721528,0.0002402,12]
[406324374,1771741832626,-150.0,0.00024658,2]
[406324375,1771741832635,-11677.34784146,0.00024887,2]
[406324376,1771741832644,-572.07264416,0.000249,2]
[406324377,1771741832655,-2197.11859302,0.000249,2]
[406324378,1771741832665,-500.0,0.00025,14]
[406324379,1771741832674,-1758.39460944,0.00025476,14]
[406324380,1771741832683,-161.04974185,0.00025627,2]
[406324381,1771741832691,-690.77492016,0.00025727,2]
[406324382,1771741832705,-150.0,0.0002589,2]
[406324383,1771741832715,-1939.98754922,0.00026931,14]
[406324384,1771741832726,-524.29833161,0.00026948,2]
[406324385,1771741832737,-11677.34784146,0.0002715,2]
[406324386,1771741832749,-150.0,0.00027185,2]
[406324387,1771741832760,-2095.63864045,0.00028386,14]
[406324388,1771741832770,-11677.34784146,0.00029412,2]
[406324389,1771741832781,-690.77492016,0.0002959,2]
[406324390,1771741832792,-166.66,0.00029795,30]
[406324391,1771741832802,-10023.02,0.000298,2]
[406324392,1771741832812,-2510.70821708,0.00029841,14]
[406324393,1771741832824,-524.29833161,0.00029964,2]
[406324394,1771741832834,-166.66,0.00030423,30]
[406324395,1771741832844,-200.0,0.0003087,2]
[406324396,1771741832855,-1000.0,0.00030965,2]
[406324397,1771741832865,-166.66,0.0003105,30]
[406324398,1771741832875,-2562.59191416,0.00031297,14]
[406324399,1771741832886,-11677.34784146,0.00031675,2]
[406324400,1771741832896,-166.66,0.00031677,30]
[406324401,1771741832906,-166.66,0.00032304,30]
[406324402,1771741832917,-2925.77779371,0.00032752,14]
[406324403,1771741832927,-166.66,0.00032932,30]
[406324404,1771741832940,-524.29833161,0.0003298,2]
[406324405,1771741832951,-150.93,0.00033,14]
[406324406,1771741832961,-1079.0,0.00033,2]
[406324407,1771741832972,-690.77492016,0.00033454,2]
[406324408,1771741832983,-11677.34784146,0.00033937,2]
[406324409,1771741832994,-3185.19627911,0.00034207,14]
[406324410,1771741833005,-572.07264416,0.00034972,2]
[406324411,1771741833016,-2197.11859302,0.00034972,2]
[406324412,1771741833038,-10023.02,0.00035,2]
[406324413,1771741833052,-161.04974184,0.00035336,2]
[406324414,1771741833065,-3340.84737034,0.00035662,14]
[406324415,1771741833076,-524.29833161,0.00035996,2]
[406324416,1771741833087,-11677.34784146,0.000362,2]
[406324417,1771741833099,-432.45528286,0.0003625,14]
[406324418,1771741833111,-509.0,0.00036734,21]
[406324419,1771741833122,-224.58,0.00036909,2]
[406324420,1771741833132,-451.87714909,0.0003698,120]
[406324421,1771741833143,-929.0,0.00036985,7]
[406324422,1771741833152,-2367.506,0.00037018,47]
[406324423,1771741833162,-184.802,0.00037018,47]
[406324424,1771741833172,-3755.91694698,0.00037118,14]
[406324425,1771741833183,-151.0,0.00037118,31]
[406324426,1771741833194,-690.77492016,0.00037317,2]
[406324427,1771741833205,-1079.0,0.000374,2]
[406324428,1771741833215,-1038.5,0.00037577,7]
[406324429,1771741833226,-687.88,0.0003813,2]
[406324430,1771741833237,-1038.5,0.00038169,7]
[406324431,1771741833248,-192.3,0.00038404,2]
[406324432,1771741833259,-11677.34784146,0.00038462,2]
[406324433,1771741833270,-151.0,0.00038462,120]
[406324434,1771741833281,-151.0,0.00038462,7]
[406324435,1771741833292,-151.0,0.00038462,7]
[406324436,1771741833303,-151.0,0.00038462,120]
[406324437,1771741833315,-5000.0,0.00038562,2]
[406324438,1771741833326,-151.0,0.00038562,120]
[406324439,1771741833337,-151.0,0.00038562,120]
[406324440,1771741833349,-3807.80064405,0.00038573,14]
[406324441,1771741833360,-500.0,0.00038661,8]
[406324442,1771741833372,-1000.0,0.00038662,2]
[406324443,1771741833382,-798.63,0.00038662,2]
[406324444,1771741833393,-10023.02,0.000387,2]
[406324445,1771741833404,-1038.5,0.00038762,30]
[406324446,1771741833414,-163.5,0.00038815,14]
[406324447,1771741833425,-524.29833161,0.00039012,2]
[406324448,1771741833436,-1038.5,0.00039354,30]
[406324449,1771741833446,-1278.022,0.00039531,2]
[406324450,1771741833456,-150.249,0.00039531,2]
[406324451,1771741833466,-1095.019,0.00039531,2]
[406324452,1771741833477,-3511.299,0.00039531,2]
[406324453,1771741833488,-1339.0,0.00039531,2]
[406324454,1771741833499,-157.07,0.00039543,30]
[406324455,1771741833510,-1038.5,0.00039946,30]
[406324456,1771741833520,-3963.45173529,0.00040028,14]
[406324457,1771741833531,-168.0,0.00040072,2]
[406324458,1771741833542,-168.0,0.00040361,2]
[406324459,1771741833552,-168.0,0.00040423,2]
[406324460,1771741833563,-1038.5,0.00040539,30]
[406324461,1771741833574,-1079.0,0.000406,30]
[406324462,1771741833584,-387.81400929,0.00040618,2]
[406324463,1771741833596,-300.0,0.00040618,2]
[406324464,1771741833607,-1082.06179791,0.00040618,2]
[406324465,1771741833617,-300.0,0.00040618,2]
[406324466,1771741833628,-300.0,0.00040618,2]
[406324467,1771741833640,-300.0,0.00040618,2]
[406324468,1771741833650,-300.0,0.00040618,2]
[406324469,1771741833661,-300.0,0.00040618,2]
[406324470,1771741833671,-855.68345202,0.00040618,2]
[406324471,1771741833682,-1563.1197537,0.00040618,2]
[406324472,1771741833692,-884.4819891,0.00040618,2]
[406324473,1771741833702,-300.0,0.00040618,2]
[406324474,1771741833713,-300.0,0.00040618,2]
[406324475,1771741833724,-300.0,0.00040618,2]
[406324476,1771741833740,-307.27731077,0.00040618,2]
[406324477,1771741833751,-300.0,0.00040618,2]
[406324478,1771741833762,-300.0,0.00040618,2]
[406324479,1771741833773,-458.78505011,0.00040618,2]
[406324480,1771741833784,-300.0,0.00040618,2]
[406324481,1771741833796,-300.0,0.00040618,2]
[406324482,1771741833806,-300.0,0.00040618,2]
[406324483,1771741833817,-371.39458192,0.00040618,2]
[406324484,1771741833828,-300.0,0.00040618,2]
[406324485,1771741833839,-300.0,0.00040618,2]
[406324486,1771741833850,-300.0,0.00040618,2]
[406324487,1771741833860,-300.0,0.00040618,2]
[406324488,1771741833870,-300.0,0.00040618,2]
[406324489,1771741833880,-300.0,0.00040618,2]
[406324490,1771741833890,-518.57454504,0.00040618,2]
[406324491,1771741833900,-306.23261478,0.00040618,2]
[406324492,1771741833910,-300.0,0.00040618,2]
[406324493,1771741833920,-535.91476306,0.00040618,2]
[406324494,1771741833932,-300.0,0.00040618,2]
[406324495,1771741833946,-300.0,0.00040618,2]
[406324496,1771741833956,-300.0,0.00040618,2]
[406324497,1771741833966,-300.0,0.00040618,2]
[406324498,1771741833976,-300.0,0.00040618,2]
[406324499,1771741833988,-300.0,0.00040618,2]
[406324500,1771741833999,-1082.06179791,0.00040618,2]
[406324501,1771741834010,-300.0,0.00040618,2]
[406324502,1771741834022,-300.0,0.00040618,2]
[406324503,1771741834032,-300.0,0.00040618,2]
[406324504,1771741834044,-300.0,0.00040618,2]
[406324505,1771741834053,-300.0,0.00040618,2]
[406324506,1771741834064,-855.68345202,0.00040618,2]
[406324507,1771741834074,-884.4819891,0.00040618,2]
[406324508,1771741834083,-300.0,0.00040618,2]
[406324509,1771741834094,-1563.1197537,0.00040618,2]
[406324510,1771741834104,-300.0,0.00040618,2]
[406324511,1771741834114,-300.0,0.00040618,2]
[406324512,1771741834123,-307.27731077,0.00040618,2]
[406324513,1771741834133,-300.0,0.00040618,2]
[406324514,1771741834145,-300.0,0.00040618,2]
[406324515,1771741834155,-458.78505011,0.00040618,2]
[406324516,1771741834166,-300.0,0.00040618,2]
[406324517,1771741834176,-300.0,0.00040618,2]
[406324518,1771741834188,-300.0,0.00040618,2]
[406324519,1771741834199,-371.39458192,0.00040618,2]
[406324520,1771741834210,-300.0,0.00040618,2]
[406324521,1771741834222,-300.0,0.00040618,2]
[406324522,1771741834232,-168.0,0.00040619,2]
[406324523,1771741834243,-153.52982697,0.00040735,2]
[406324524,1771741834254,-7641.5092019,0.00040835,2]
[406324525,1771741834263,-151.0,0.00040835,14]
[406324526,1771741834273,-151.0,0.00040835,120]
[406324527,1771741834283,-1000.0,0.00040849,21]
[406324528,1771741834294,-1000.0,0.00040849,21]
[406324529,1771741834304,-1000.0,0.00040849,21]
[406324530,1771741834315,-1000.0,0.00040849,21]
[406324531,1771741834325,-1000.0,0.00040849,21]
[406324532,1771741834335,-1000.0,0.00040849,21]
[406324533,1771741834347,-500.0,0.00040849,21]
[406324534,1771741834357,-1000.0,0.00040849,21]
[406324535,1771741834367,-500.0,0.00040849,21]
[406324536,1771741834378,-500.0,0.00040849,21]
[406324537,1771741834388,-1000.0,0.00040849,21]
[406324538,1771741834398,-500.0,0.00040849,21]
[406324539,1771741834408,-1000.0,0.00040849,21]
[406324540,1771741834418,-1000.0,0.00040849,21]
[406324541,1771741834428,-500.0,0.00040849,21]
[406324542,1771741834438,-307.24570019,0.00040849,21]
[406324543,1771741834448,-500.0,0.00040849,21]
[406324544,1771741834457,-250.0,0.00040849,21]
[406324545,1771741834467,-358.82149351,0.00040849,21]
[406324546,1771741834477,-250.0,0.00040849,21]
[406324547,1771741834487,-250.0,0.00040849,21]
[406324548,1771741834497,-250.0,0.00040849,21]
[406324549,1771741834507,-250.0,0.00040849,21]
[406324550,1771741834516,-250.0,0.00040849,21]
[406324551,1771741834527,-250.0,0.00040849,21]
[406324552,1771741834536,-693.3919763,0.00040849,21]
[406324553,1771741834546,-250.0,0.00040849,21]
[406324554,1771741834560,-719.04747942,0.00040849,21]
[406324555,1771741834576,-250.0,0.00040849,21]
[406324556,1771741834588,-745.65223616,0.00040849,21]
[406324557,1771741834599,-250.0,0.00040849,21]
[406324558,1771741834610,-773.2413689,0.00040849,21]
[406324559,1771741834620,-250.0,0.00040849,21]
[406324560,1771741834632,-801.85129955,0.00040849,21]
[406324561,1771741834642,-831.51979763,0.00040849,21]
[406324562,1771741834654,-862.28603014,0.00040849,21]
[406324563,1771741834665,-894.19061326,0.00040849,21]
[406324564,1771741834675,-927.27566595,0.00040849,21]
[406324565,1771741834687,-961.58486559,0.00040849,21]
[406324566,1771741834697,-151.0,0.00040849,21]
[406324567,1771741834708,-997.16350561,0.00040849,21]
[406324568,1771741834719,-151.0,0.00040849,21]
[406324569,1771741834729,-151.0,0.00040849,21]
[406324570,1771741834740,-151.0,0.00040849,21]
[406324571,1771741834751,-151.0,0.00040849,21]
[406324572,1771741834760,-151.0,0.00040849,21]
[406324573,1771741834771,-151.0,0.00040849,21]
[406324574,1771741834781,-151.0,0.00040849,21]
[406324575,1771741834791,-151.0,0.00040849,21]
[406324576,1771741834801,-151.0,0.00040849,21]
[406324577,1771741834811,-151.0,0.00040849,21]
[406324578,1771741834820,-200.0,0.0004085,7]
[406324579,1771741834831,-44507.0,0.0004095,60]
[406324580,1771741834840,-729.0,0.0004095,30]
[406324581,1771741834850,-744.0,0.0004095,30]
[406324582,1771741834860,-730.0,0.0004095,30]
[406324583,1771741834870,-751.0,0.0004095,30]
[406324584,1771741834881,-726.0,0.0004095,30]
[406324585,1771741834890,-750.0,0.0004095,30]
[406324586,1771741834902,-743.0,0.0004095,30]
[406324587,1771741834913,-745.0,0.0004095,30]
[406324588,1771741834923,-738.0,0.0004095,30]
[406324589,1771741834932,-738.0,0.0004095,30]
[406324590,1771741834946,-738.0,0.0004095,30]
[406324591,1771741834956,-744.0,0.0004095,30]
[406324592,1771741834967,-755.0,0.0004095,30]
[406324593,1771741835189,-754.0,0.0004095,30]
[406324594,1771741835199,-730.0,0.0004095,30]
[406324595,1771741835209,-727.0,0.0004095,30]
[406324596,1771741835218,-738.0,0.0004095,30]
[406324597,1771741835228,-753.0,0.0004095,30]
[406324598,1771741835237,-740.0,0.0004095,30]
[406324599,1771741835246,-727.0,0.0004095,30]
[406324600,1771741835255,-748.0,0.0004095,30]
[406324601,1771741835265,-1038.5,0.00041131,30]
[406324602,1771741835274,-151.0,0.00041131,30]
[406324603,1771741835283,-690.77492016,0.00041181,28]
[406324604,1771741835292,-10023.02,0.000412,2]
[406324605,1771741835301,-338.0,0.00041251,120]
[406324606,1771741835311,-200.0,0.00041259,7]
[406324607,1771741835319,-151.0,0.00041259,120]
[406324608,1771741835328,-151.0,0.00041443,120]
[406324609,1771741835337,-151.0,0.00041443,120]
[406324610,1771741835346,-151.0,0.00041443,120]
[406324611,1771741835355,-151.0,0.00041443,120]
[406324612,1771741835365,-151.0,0.00041443,120]
[406324613,1771741835374,-3963.45173529,0.00041483,14]
[406324614,1771741835383,-151.0,0.00041483,120]
[406324615,1771741835393,-162.216819,0.00041483,120]
[406324616,1771741835403,-152.0,0.00041641,3]
[406324617,1771741835411,-224.0,0.00041654,120]
[406324618,1771741835421,-200.0,0.00041671,7]
[406324619,1771741835430,-357.43507577,0.00041674,10]
[406324620,1771741835439,-1038.5,0.00041723,30]
[406324621,1771741835448,-151.0,0.00041753,120]
[406324622,1771741835456,-1459.08,0.00041766,120]
[406324623,1771741835465,-741.0,0.00041766,30]
[406324624,1771741835474,-163.5,0.00041967,14]
[406324625,1771741835482,-524.29833161,0.00042028,15]
[406324626,1771741835491,-200.0,0.00042088,7]
[406324627,1771741835501,-153.52982695,0.00042165,6]
[406324628,1771741835510,-208.53,0.00042215,14]
[406324629,1771741835519,-33854.71528056,0.000423,60]
[406324630,1771741835560,-2000.0,0.000423,60]
[406324631,1771741835571,-918.949,0.000423,60]
[406324632,1771741835587,-309.88642084,0.00034438,2]
[406324633,1771741835597,-10.23757916,0.000423,60]
[406324634,1771741835608,-3473.09111106,0.000423,60]
[406324635,1771741835619,-1014.02545008,0.000423,60]
[406324640,1771741837772,-159.868355,0.000342,60]
[406324641,1771741837782,-300.0,0.00040618,2]
[406324642,1771741837791,-389.28422744,0.00040618,2]
[406324643,1771741837800,-300.0,0.00040618,2]
[406324644,1771741837809,-300.0,0.00040618,2]
[406324645,1771741837819,-518.57454504,0.00040618,2]
[406324646,1771741837829,-1563.07287252,0.000423,60]
[406324647,1771741837840,-1672.90870662,0.000423,60]
[406324648,1771741837849,-1000.0,0.000423,2]
[406324649,1771741837859,-151.0,0.000423,120]
[406324650,1771741837868,-151.0,0.000423,7]
[406324651,1771741837878,-151.0,0.000423,7]
[406324652,1771741837887,-1038.5,0.00042316,30]
[406324653,1771741837896,-1079.0,0.000424,30]
[406324654,1771741837905,-168.0,0.00042528,2]
[406324655,1771741837914,-1276.0,0.00042531,2]
[406324656,1771741837923,-1338.888,0.00042531,2]
[406324657,1771741837932,-282.92,0.00042753,14]
[406324658,1771741837945,-5028.47844898,0.00042873,7]
[406324659,1771741837954,-151.0,0.00042883,14]
[406324660,1771741837963,-1038.5,0.00042908,30]
[406324661,1771741837972,-3963.45173529,0.00042938,14]
[406324662,1771741837983,-696.55,0.00043066,120]
[406324663,1771741837996,-150.0,0.00043295,120]
[406324665,1771741838006,-10023.02,0.000433,2]
[406324667,1771741838018,-150.0,0.00043315,2]
[406324669,1771741838027,-3240.0,0.00043394,120]
[406324671,1771741838037,-168.0,0.00043431,2]
[406324673,1771741838046,-306.51904326,0.00043485,60]
[406324675,1771741838058,-193.48095674,0.00043485,60]
[406324677,1771741838068,-500.0,0.00043485,60]
[406324679,1771741838077,-500.0,0.00043485,60]
[406324681,1771741838087,-976.09516634,0.00043488,2]
[406324684,1771741838098,-195.15871779,0.00043488,2]
[406324685,1771741838107,-339.56865201,0.00043502,30]
[406324846,1771741839837,-618.0,0.00039531,2]
[406324847,1771741839847,-306.23261478,0.00040618,2]
[406324849,1771741839857,-727.0,0.00041919,30]
[406324851,1771741839866,-408.43134799,0.00043502,30]
[406324853,1771741839876,-13069.0,0.00043563,7]
[406324854,1771741839885,-153.52982695,0.00043595,12]
[406324856,1771741839895,-749.0,0.00043641,30]
[406324858,1771741839903,-44507.0,0.0004365,60]
[406324860,1771741839912,-151.0,0.0004365,30]
[406324862,1771741839922,-208.52,0.00043708,14]
[406324864,1771741839931,-659.18027119,0.00043757,2]
[406324867,1771741839944,-1000.0,0.00043793,2]
[406324868,1771741839953,-177.39397696,0.00043836,2]
[406324870,1771741839963,-168.0,0.00043891,2]
[406324872,1771741839972,-168.0,0.00043918,2]
[406324874,1771741839983,-168.0,0.0004397,2]
[406324876,1771741839992,-2863.46,0.00044026,120]
[406324878,1771741840001,-168.0,0.0004411,2]
[406324880,1771741840011,-168.0,0.00044236,2]
[406324882,1771741840021,-252.09306051,0.00044274,120]
[406324885,1771741840031,-2000.0,0.000443,120]
[406324886,1771741840040,-151.0,0.00044324,120]
[406324889,1771741840049,-151.0,0.00044324,120]
[406324890,1771741840060,-151.0,0.00044324,120]
[406324892,1771741840069,-151.0,0.00044324,120]
[406324894,1771741840078,-151.0,0.00044324,120]
[406324896,1771741840087,-439.72064626,0.00044383,120]
[406324898,1771741840096,-500.0,0.00044383,120]
[406324900,1771741840105,-500.0,0.00044383,120]
[406324902,1771741840114,-500.0,0.00044383,120]
[406324904,1771741840123,-500.0,0.00044383,120]
[406324906,1771741840132,-500.0,0.00044383,120]
[406324908,1771741840141,-500.0,0.00044383,120]
[406324910,1771741840151,-500.0,0.00044383,120]
[406324912,1771741840160,-500.0,0.00044383,120]